Cogmind - Beta 16.1 *** ADVENTURER MODE // 2026.02.16 @ 12:35:49 Player: Mbreton Result: Destroyed by P-70 Sage with High-powered Shock Rifle Performance ------------- Evolutions (5) 2500 Regions Visited (20) 4000 Robots Destroyed (178) 890 Value Destroyed (10072) 10072 Prototype IDs (0) 0 Alien Tech Used (0) 0 Bonus (9139) 9139 TOTAL SCORE: 26601 Bonus ------- High Alert Combat Kills 1132 Follower Combat Kills 3448 Entered Garrisons 1600 Used RIF Installer 3000 Friendly Fire -41 Cogmind --------- Core Integrity 0/1000 Matter 196/300 Energy 100/100 System Corruption 15% Temperature Cool (0) Movement Core (100) Ox1 Location -5/Garrison Parts ------- > --- POWER (2) -------- (None) > --- PROPULSION (4) --- (None) > --- UTILITY (9) ------ Advanced Visual Processing Unit Relay Coupler [Demolisher] (1) Makeshift System Restoration Module > --- WEAPON (2) ------- (None) > --- INVENTORY (5) ---- Armor Integrity Analyzer Authchip [R/Combat] Advanced Remote Datajack Peak State ------------ > --- POWER ------------ Micro Fission Core Micro Fission Core > --- PROPULSION ------- Light Treads Improved Treads Improved Medium Treads Armored Medium Treads > --- UTILITY ---------- Advanced Heat Sink Medium Storage Unit Advanced Visual Processing Unit Graphene Brace Relay Coupler [NC] Relay Coupler [Grunt] Relay Coupler [Sentry] Relay Coupler [Specialist] Relay Coupler [Hunter] > --- WEAPON ----------- Heavy Phase Cannon Advanced Remote Datajack > --- INVENTORY -------- Angular Momentum Engine Carbon-fiber Leg Flexi-carbon Leg Improved Medium Armor Plating Relay Coupler [Swarmer] Relay Coupler [Demolisher] Makeshift System Restoration Module Gauss Rifle Improved Datajack Power Sword [Rating: 78] Favorites ----------- Power Micro Fission Core Engine Light Angular Momentum Engine Power Core Micro Fission Core Propulsion Titanium Leg Treads Improved Treads Leg Titanium Leg Hover Unit Gravmag System Utility Advanced Visual Processing Unit Device Advanced Heat Sink Storage Medium Storage Unit Processor Advanced Visual Processing Unit Hackware Relay Coupler [Grunt] Protection Improved Medium Armor Plating Weapon Gauss Rifle Energy Gun Dispersion Rifle Energy Cannon Advanced Plasma Cannon Ballistic Gun Gauss Rifle Launcher Rocket Launcher Special Weapon Advanced Remote Datajack Slashing Weapon Power Sword Special Melee Weapon Datajack Build | -11 -10 -10 -10 -9 -8 -8 -8 -8 -7 -7 -7 -7 -6 -6 -5 -5 -5 -5 -5 -5 ------- Run | Yrd Mat Min Exi Min Mat Gar Mat Gar Fac Gar Fac Gar Fac Gar Fac Gar Fac Gar Fac Gar Slots Evolved 10 | . . . . . 4 . . . 2 . . . 2 . 2 . . . . . Power 1 | . . . . . . . . . . . . . . . 1 . . . . . Propulsion 2 | . . . . . 1 . . . . . . . 1 . . . . . . . Utility 7 | . . . . . 3 . . . 2 . . . 1 . 1 . . . . . Weapon . | . . . . . . . . . . . . . . . . . . . . . Parts Attached 145 | 6 3 5 2 2 13 17 3 2 7 6 1 16 12 9 9 13 2 8 8 1 Power 18 | 1 . 1 1 . . 4 . . 1 1 . 3 1 1 2 . . 2 . . Engine 7 | 1 . 1 1 . . . . . . . . 1 1 1 . . . 1 . . Core 11 | . . . . . . 4 . . 1 1 . 2 . . 2 . . 1 . . Reactor . | . . . . . . . . . . . . . . . . . . . . . Propulsion 41 | 2 . 2 . . 4 5 . . 2 . . 4 5 3 4 5 . 2 3 . Treads 6 | . . . . . . . . . . . . . . . . 4 . 2 . . Leg 34 | 2 . 2 . . 4 5 . . 2 . . 4 5 3 4 1 . . 2 . Wheel . | . . . . . . . . . . . . . . . . . . . . . Hover 1 | . . . . . . . . . . . . . . . . . . . 1 . Flight . | . . . . . . . . . . . . . . . . . . . . . Utility 52 | 1 . 1 . 1 7 4 2 1 2 4 1 5 3 5 2 7 . 2 3 1 Device 10 | . . . . . 1 1 1 1 1 . . . 1 . 1 1 . . 1 1 Storage 2 | 1 . . . . 1 . . . . . . . . . . . . . . . Processor 5 | . . . . . 3 1 . . 1 . . . . . . . . . . . Hackware 23 | . . . . . . . 1 . . 4 . 4 1 5 1 5 . . 2 . Protection 12 | . . 1 . 1 2 2 . . . . 1 1 1 . . 1 . 2 . . Artifact . | . . . . . . . . . . . . . . . . . . . . . Weapon 34 | 2 3 1 1 1 2 4 1 1 2 1 . 4 3 . 1 1 2 2 2 . Energy Gun 6 | . 1 . . . 1 . . . . . . . 2 . . . . 1 1 . Energy Cannon 4 | . . . . . . . . . . . . . 1 . 1 . 2 . . . Ballistic Gun 11 | 2 . . . 1 . 2 . . . 1 . 3 . . . 1 . 1 . . Ballistic Cannon . | . . . . . . . . . . . . . . . . . . . . . Launcher 7 | . 2 1 . . 1 1 . . . . . 1 . . . . . . 1 . Special Weapon 2 | . . . . . . 1 . . 1 . . . . . . . . . . . Impact Weapon . | . . . . . . . . . . . . . . . . . . . . . Slashing Weapon 1 | . . . . . . . . 1 . . . . . . . . . . . . Piercing Weapon . | . . . . . . . . . . . . . . . . . . . . . Special Melee Weapon 3 | . . . 1 . . . 1 . 1 . . . . . . . . . . . Unidentified Prototypes . | . . . . . . . . . . . . . . . . . . . . . Corrupted Parts 1 | . . . . . . . . . . . . . . . . . . . 1 . System Corruption 3 | . . . . . . . . . . . . . . . . . . . 3 . Parts Lost 62 | . . 1 1 . 1 7 . . . 3 . 9 2 2 4 7 . 7 10 8 Power 9 | . . . . . . 1 . . . 1 . 2 . . 1 . . 2 2 . Propulsion 21 | . . . . . . 3 . . . . . 3 2 . . 5 . 2 4 2 Utility 22 | . . . 1 . 1 3 . . . 2 . 2 . 1 2 2 . 2 . 6 Weapon 10 | . . 1 . . . . . . . . . 2 . 1 1 . . 1 4 . Highest Loss Streak 8 | . . 1 1 . 1 2 . . . 2 . 3 1 1 2 4 . 6 5 8 To Critical Strikes . | . . . . . . . . . . . . . . . . . . . . . Average Backups 8 | . 4 7 8 8 9 9 9 10 9 10 10 9 10 8 9 9 8 6 3 3 Power . | . . . . . . . . . . 1 1 . . . . 1 . . . . Propulsion . | . . . 1 1 1 1 1 1 1 1 1 1 . . 1 2 . . . . Utility 3 | . . 1 2 3 3 3 4 4 3 3 3 3 5 3 4 3 4 4 2 2 Weapon 2 | . 3 4 4 3 3 4 2 3 3 3 3 2 3 2 1 1 2 . . . Tool/Special . | . . . . . . . . . . . . . . . . . . . . . Unused Backups 14 | . . . . . . 1 . . . 1 . 4 . 2 . . 2 3 . 1 Power 1 | . . . . . . . . . . . . . . . . . 1 . . . Propulsion 1 | . . . . . . . . . . . . . . . . . 1 . . . Utility 11 | . . . . . . 1 . . . 1 . 3 . 2 . . . 3 . 1 Weapon 1 | . . . . . . . . . . . . 1 . . . . . . . . Tool/Special . | . . . . . . . . . . . . . . . . . . . . . Average Slot Usage (%) 94 | . 85 96 96 95 91 97 96 100 95 98 100 94 94 99 86 95 99 90 69 52 Engine 3 | . 14 14 14 14 9 . . . . . . . 5 6 1 . . 2 2 . Core 5 | . . . . . . 8 9 9 7 6 7 6 . . 4 11 11 7 2 . Treads 3 | . . . . . . . . . . . . . . . . 16 23 18 7 . Leg 19 | . 28 28 28 28 26 26 25 27 22 23 23 18 23 26 18 4 . . 2 3 Device 3 | . . . . . 4 2 4 9 14 6 . . . . 1 9 11 11 4 6 Storage 7 | . 14 14 14 14 9 9 9 9 7 7 7 7 6 6 5 5 5 2 . . Processor 9 | . . . . . 13 19 18 18 18 15 15 12 6 6 5 5 5 5 5 5 Hackware 16 | . . . . . . . 3 9 3 14 29 25 31 32 32 24 29 24 31 31 Protection 6 | . . 11 10 9 10 12 9 . 5 5 . 4 6 6 1 3 . 3 2 . Energy Gun 2 | . 4 14 10 . . 2 . . . . . . 3 5 4 . . 2 1 . Ballistic Gun 6 | . 19 . . 9 16 12 16 16 14 11 8 8 1 . . 2 . 2 . . Launcher 1 | . 3 13 6 11 . 1 . . . . . . . . . . . . . . Special Weapon 1 | . . . . . . . . . . 1 4 2 2 2 2 1 2 . 1 . Slashing Weapon 1 | . . . . . . . . 1 . 1 1 2 3 2 . . . . . . Special Melee Weapon 1 | . . . 11 7 . . . . . . . . . 1 . . . . . . Peak Build Rating 78 | 6 6 8 12 12 31 37 40 41 52 55 55 59 66 64 77 78 78 76 75 39 Average Rating 45 | 4 6 7 9 11 24 31 37 40 47 50 52 51 60 59 64 71 76 72 50 35 On Entrance 41 | . 6 6 8 11 12 31 37 40 40 51 55 53 53 61 61 71 78 76 75 39 Avg Prop Armor Cover (%) 27 | . . . . . . . . . . . . . . . . . . . 26 30 Naked Turns . | . . . . . . . . . . . . . . . . . . . . . Heaviest Build 47 | 10 14 16 17 17 22 34 34 26 36 36 31 35 37 35 37 44 40 47 47 5 Greatest Support 100 | 20 20 20 20 20 51 51 41 41 53 53 53 53 73 67 65 100 100 100 96 3 Greatest Overweight (x) 14 | 1 . . . . . 1 . . 2 . . 1 . . 1 14 . . 1 1 Average Overweight (x) . | . . . . . . . . . . . . . . . . . . . . 1 Largest Inventory Capacity 10 | 8 8 8 8 8 10 10 10 10 10 10 10 10 10 10 10 10 10 10 5 5 Average Capacity 9 | 7 8 8 8 8 9 10 10 10 10 10 10 10 10 10 10 10 10 7 5 5 Most Carried 10 | 1 7 8 8 8 10 10 10 10 10 10 10 10 10 10 10 10 10 10 5 4 Average Carried 8 | . 4 7 7 8 9 9 9 9 9 9 10 9 9 8 9 9 8 7 3 3 Final Capacity 10 | 8 8 8 8 8 10 10 10 10 10 10 10 10 10 10 10 10 10 5 5 5 Final Carried 10 | 1 7 8 8 8 10 10 10 10 10 10 10 10 10 10 10 10 10 5 4 3 Class Distribution -------------------- 31% | Bothacker-Mutant 26% | Scavenger-Mutant 18% | Botlord-Mutant 18% | Mutant 4% | Commander-Mutant Dominant Class ---------------- Mutant | -10/Materials Scavenger-Mutant | -10/Mines Scavenger-Mutant | -10/Exiles Mutant | -9/Mines Mutant | -8/Materials Scavenger-Mutant | -8/Garrison Scavenger-Mutant | -8/Materials Scavenger-Mutant | -8/Garrison Scavenger-Mutant | -7/Factory Mutant | -7/Garrison Bothacker-Mutant | -7/Factory Bothacker-Mutant | -7/Garrison Bothacker-Mutant | -6/Factory Bothacker-Mutant | -6/Garrison Botlord-Mutant | -5/Factory Bothacker-Mutant | -5/Garrison Botlord-Mutant | -5/Factory Botlord-Mutant | -5/Garrison Botlord-Mutant | -5/Factory Botlord-Mutant | -5/Garrison Resources | -11 -10 -10 -10 -9 -8 -8 -8 -8 -7 -7 -7 -7 -6 -6 -5 -5 -5 -5 -5 -5 ----------- Run | Yrd Mat Min Exi Min Mat Gar Mat Gar Fac Gar Fac Gar Fac Gar Fac Gar Fac Gar Fac Gar Matter Collected 5899 | 62 58 383 . 111 334 833 181 167 218 513 104 1132 405 354 317 265 130 166 166 . Remotely . | . . . . . . . . . . . . . . . . . . . . . Salvage Created 6915 | . 86 170 6 133 328 1071 185 143 390 715 72 1097 282 188 198 447 489 600 315 . Parts 379 | . 14 23 . 7 18 71 10 2 17 31 3 64 17 13 10 18 19 29 13 . Haulers Intercepted . | . . . . . . . . . . . . . . . . . . . . . Recyclers Shooed 2 | . . . . . . . . . . . . . . . . . 1 . 1 . Parts Field Recycled . | . . . . . . . . . . . . . . . . . . . . . Retrieved Matter . | . . . . . . . . . . . . . . . . . . . . . Parts Self-Destructed . | . . . . . . . . . . . . . . . . . . . . . Prevented . | . . . . . . . . . . . . . . . . . . . . . Parts Restored . | . . . . . . . . . . . . . . . . . . . . . Kills | -11 -10 -10 -10 -9 -8 -8 -8 -8 -7 -7 -7 -7 -6 -6 -5 -5 -5 -5 -5 -5 ------- Run | Yrd Mat Min Exi Min Mat Gar Mat Gar Fac Gar Fac Gar Fac Gar Fac Gar Fac Gar Fac Gar Combat Hostiles Destroyed 169 | . 7 10 . 3 7 30 3 3 5 17 1 28 5 7 3 9 6 15 10 . Melee 12 | . . . . . . . . . 2 1 . 2 2 . 1 2 1 1 . . Guns 92 | . 1 6 . . 5 15 3 3 3 16 1 23 3 3 1 . . 3 6 . Cannons 19 | . . . . . . . . . . . . . . . 1 5 5 8 . . AOE 41 | . 6 4 . 3 2 15 . . . . . 3 . 4 . . . . 4 . Classes Destroyed 19 | . 2 . . 1 3 3 2 1 2 1 . 1 . . . . . 1 2 . Worker 3 | . . . . . . . . . 1 . 1 . . . . . . . 1 . Builder 2 | . . . . . 1 . . . . . . . . . . . . . 1 . Tunneler 1 | . . . . . . . . . 1 . . . . . . . . . . . Recycler 3 | . . . . . 1 . . . 1 . . . . . . . 1 . . . Mechanic 1 | . . . . . . . . . . . . 1 . . . . . . . . Operator 1 | . . . . . . . 1 . . . . . . . . . . . . . Watcher 2 | . . . . . . . 1 . . . . . . . . . 1 . . . Swarmer 61 | . 6 6 . . 2 9 1 . . 6 . 15 . 4 . 3 2 7 . . Cutter 2 | . . . . . . . . . . . . . . . . . . 2 . . Grunt 52 | . 1 4 . 3 4 12 1 2 3 7 1 4 2 1 . 2 . 1 4 . Brawler 4 | . . . . . . 1 . . . . . 1 . . . 1 1 . . . Duelist 4 | . . . . 1 . 1 . . . . . . . . . 1 1 . . . Sentry 15 | . . . . . 1 3 1 . 1 . . 4 2 . 2 . . 1 . . Demolisher 1 | . . . . . . . . . . . . . . . . . . . 1 . Specialist 3 | . . . . . . 3 . . . . . . . . . . . . . . Hunter 10 | . . . . . . . . . . 3 . 1 . 2 . 1 1 2 . . Programmer 11 | . . . . . . 1 . . 1 1 . 3 1 . 1 . 1 2 . . Behemoth 2 | . . . . . . . . 1 . . . . . . . 1 . . . . Assembled 5 | . . . . . . . . . . . . . . . . . . . 5 . Best Kill Streak 13 | . 4 3 . 3 5 13 2 2 4 4 2 7 2 2 2 4 4 6 5 . Combat Bots Only 13 | . 4 3 . 3 3 13 1 2 2 4 1 6 2 2 2 4 3 6 5 . Max Kills in Single Turn 4 | . 3 2 . 4 3 2 1 1 2 2 1 3 1 2 1 1 1 1 2 . Gunslinging 1 | . . . . . . . . . . 1 . 1 . . . . . . 1 . Exploded 3 | . 3 2 . 3 1 2 . . . . . 3 . 2 . . . . 1 . Melee 1 | . . . . . . . . . 1 1 . 1 1 . 1 1 1 1 . . Uniques/NPCs Destroyed . | . . . . . . . . . . . . . . . . . . . . . Combat | -11 -10 -10 -10 -9 -8 -8 -8 -8 -7 -7 -7 -7 -6 -6 -5 -5 -5 -5 -5 -5 -------- Run | Yrd Mat Min Exi Min Mat Gar Mat Gar Fac Gar Fac Gar Fac Gar Fac Gar Fac Gar Fac Gar Hostile Shots Fired 1224 | . 7 35 . 3 46 146 3 12 89 75 2 337 65 42 22 73 28 107 75 57 Missed 407 | . 3 11 . 2 15 46 . 7 45 25 1 126 24 9 3 12 3 35 22 18 Hits 817 | . 4 24 . 1 31 100 3 5 44 50 1 211 41 33 19 61 25 72 53 39 Melee 9 | . . . . . . 1 . . . . . . . 1 . 3 1 3 . . Projectile 808 | . 4 24 . 1 31 99 3 5 44 50 1 211 41 32 19 58 24 69 53 39 AOE 16 | . . . . . . . . . . . . 1 . 2 . . . 2 11 . Critical Strikes 24 | . . . . . 2 6 . . 2 . . . . . . . . 12 . 2 Actively Blocked 12 | . . . . . . . . . . . . . . . . . . 12 . . Part Disruptions 1 | . . . . . . . . . . . . . . . 1 . . . . . Damage Taken 10357 | . 23 349 24 61 321 1398 33 88 266 584 28 1673 295 552 525 924 428 1065 1063 657 Core 1823 | . . 69 . 8 78 274 7 . 12 54 . 235 49 27 63 185 44 109 183 426 Absorbed by Shields 11 | . . . . . . 2 . . . . . . . . . 9 . . . . Redirected to Shielding 43 | . . . . . . 43 . . . . . . . . . . . . . . Ignored by Resistances 3033 | . 9 103 6 18 94 413 9 25 89 171 8 521 97 164 143 265 125 304 292 177 Regen/Repaired (Parts) 565 | . . . . . . . 480 . . . . . 85 . . . . . . . Core Remaining (%) 70 | 100 . . . 69 . . . 34 . . . 57 . 91 . . . . . . Volleys Fired 566 | . 7 21 4 4 42 82 10 15 17 54 7 100 21 29 14 37 21 42 39 . Largest 2 | . 2 2 1 2 2 2 2 2 2 2 2 2 1 2 2 2 2 2 2 . Hottest 196 | . 60 73 33 53 53 100 56 56 56 56 56 56 88 124 178 118 196 196 108 . Shots Fired 885 | . 14 34 4 8 84 142 17 28 33 90 12 158 21 36 15 48 30 62 49 . Gun 663 | . 10 27 . 4 80 119 17 28 32 87 11 144 13 23 4 11 . 22 31 . Cannon 98 | . . . . . . . . . . . . . . . 2 31 25 40 . . Launcher 62 | . 4 7 4 4 4 22 . . . . . 4 . 6 . . . . 7 . Special 62 | . . . . . . 1 . . 1 3 1 10 8 7 9 6 5 . 11 . Kinetic 572 | . 9 6 . 4 80 107 17 28 32 87 11 144 1 4 3 11 . 19 9 . Thermal 168 | . 1 21 . . . 13 . . . . . . 12 19 3 31 25 40 3 . Explosive 51 | . 4 7 4 4 4 11 . . . . . 4 . 6 . . . . 7 . Electromagnetic 33 | . . . . . . 11 . . . . . . . . . . . 3 19 . Robot Hit Streak 31 | . 5 10 . 2 24 17 17 9 22 31 4 30 11 20 8 26 27 7 15 . Robot Miss Streak 6 | . 2 2 . . 3 2 1 2 1 2 2 3 2 6 1 2 2 2 2 . Penetration Max 1 | . . . . . . 1 1 . 1 1 . 1 . . . . . 1 . . Secondary Targets 8 | . . . . . 1 . . . . 3 . 3 . . . . . . 1 . Max Gunslinging Chain 1 | . . . . . 1 . . . . 1 . 1 . . . . . . 1 . Shots Hit Robots 686 | . 6 27 5 1 65 108 17 17 33 74 7 120 21 25 18 38 20 41 43 . Core Hits 351 | . 11 15 6 8 28 66 7 9 12 31 3 55 6 18 6 13 10 17 27 3 Critical Kills 9 | . . . . . . 1 . . . 2 . . 2 . . 2 . 2 . . Critical Parts Destroyed 11 | . . . . . . 2 . 1 1 3 . 1 1 1 . . . 1 . . Critical Strikes 23 | . . . . . . 4 . 1 2 5 . 1 4 1 . 2 . 3 . . Burn 1 | . . . . . . 1 . . . . . . . . . . . . . . Meltdown 4 | . . . . . . . . . . . . . . . . 2 . 2 . . Destroy 16 | . . . . . . 3 . 1 1 5 . 1 3 1 . . . 1 . . Sever 2 | . . . . . . . . . 1 . . . 1 . . . . . . . Melee Attacks 97 | . . . 5 . . 4 2 3 5 3 . 26 5 8 5 7 3 21 . . Impact . | . . . . . . . . . . . . . . . . . . . . . Slashing 83 | . . . . . . . . 3 5 3 . 26 5 7 5 7 2 20 . . Piercing . | . . . . . . . . . . . . . . . . . . . . . Sneak Attacks 11 | . . . 5 . . 4 . . . . . . . 1 . . . 1 . . Combat Hostiles . | . . . . . . . . . . . . . . . . . . . . . Follow-up Attacks . | . . . . . . . . . . . . . . . . . . . . . Damage Inflicted 17783 | . 353 622 202 208 1258 2734 289 340 778 1351 148 2775 444 1309 360 1049 556 1493 1431 83 Guns 9051 | . 35 252 . . 509 1623 289 340 621 1303 148 2245 239 297 91 131 . 361 567 . Cannons 2291 | . . . . . . . . . . . . . . . 70 790 484 947 . . Explosions 5010 | . 318 370 202 208 749 1111 . . . . . 312 . 876 . . . . 864 . Melee 1348 | . . . . . . . . . 157 48 . 218 205 136 199 128 72 185 . . Ramming 83 | . . . . . . . . . . . . . . . . . . . . 83 Kinetic 7763 | . 35 49 . . 509 1492 289 340 621 1303 148 2245 23 . 64 131 . 361 153 . Thermal 3785 | . . 203 . . 401 171 . . . . . . 216 297 97 790 484 947 179 . Explosive 4063 | . 318 370 202 208 348 706 . . . . . 312 . 876 . . . . 723 . Electromagnetic 741 | . . . . . . 365 . . . . . . . . . . . . 376 . Impact . | . . . . . . . . . . . . . . . . . . . . . Slashing 1348 | . . . . . . . . . 157 48 . 218 205 136 199 128 72 185 . . Piercing . | . . . . . . . . . . . . . . . . . . . . . Highest Corruption 15 | . . . . . . 1 1 1 . . . 1 1 1 . . . 3 6 15 Average Corruption 1 | . . . . . . 1 1 1 . . . 1 1 1 . . . 2 4 4 Corruption Purged 3 | . . . . . . . . . . . . . . . . . . . 1 2 Corruption Blocked . | . . . . . . . . . . . . . . . . . . . . . Effects 71 | . . . . . . 7 5 4 . . . 22 1 9 . . . 11 11 1 Message Errors 20 | . . . . . . 3 2 . . . . 4 1 2 . . . 5 2 1 Matter Fused 18 | . . . . . . 1 2 1 . . . 6 . 2 . . . 2 4 . Heat Flow Errors 8 | . . . . . . 2 . 1 . . . 3 . 1 . . . . 1 . Energy Discharges 9 | . . . . . . 1 . . . . . 3 . 2 . . . 1 2 . Data Loss (minor) 8 | . . . . . . . 1 2 . . . 3 . . . . . 1 1 . Data Loss (major) 1 | . . . . . . . . . . . . 1 . . . . . . . . Misfires 6 | . . . . . . . . . . . . 2 . 2 . . . 2 . . Alerts 1 | . . . . . . . . . . . . . . . . . . . 1 . Overload Shots . | . . . . . . . . . . . . . . . . . . . . . Overflow Damage 209 | . 27 52 9 . . 8 . . . . . 20 . 2 . . 26 39 26 . Projectiles 65 | . . . . . . . . . . . . . . . . . 26 39 . . Explosions 144 | . 27 52 9 . . 8 . . . . . 20 . 2 . . . . 26 . Melee . | . . . . . . . . . . . . . . . . . . . . . Knockbacks 1 | . . . . . . . . . . . . . . . . . . . . 1 Impact 1 | . . . . . . . . . . . . . . . . . . . . 1 Kinetic . | . . . . . . . . . . . . . . . . . . . . . Secondary . | . . . . . . . . . . . . . . . . . . . . . Self-Inflicted Damage 520 | . . 141 24 53 . 219 . . . . . . . 55 . . . . . 28 Shots 24 | . . 5 1 3 . 12 . . . . . . . 3 . . . . . . Rammed 39 | . . . . . . . . . . . . . . . . . . . . 39 Targets Rammed 42 | . . . . . . . . . . . . . . . . . . . . 42 Kicked 3 | . . . . . . . . . . . . . . . . . . . . 3 Crushed . | . . . . . . . . . . . . . . . . . . . . . Highest Temperature 430 | . 20 117 16 44 50 218 3 82 6 15 . 274 135 272 66 117 198 430 119 . Average Temperature 53 | . 8 43 6 23 10 42 3 34 4 6 . 71 51 60 27 31 61 136 45 . Received Heat Transfer 2025 | . 6 99 . 6 186 531 9 21 45 135 9 387 78 15 120 78 27 108 165 . Effects 5 | . . . . . . . . . . . . . . . . . . 5 . . Shutdowns 1 | . . . . . . . . . . . . . . . . . . 1 . . Interference 2 | . . . . . . . . . . . . . . . . . . 2 . . Matter Decay 1 | . . . . . . . . . . . . . . . . . . 1 . . Short Circuit 1 | . . . . . . . . . . . . . . . . . . 1 . . Siege Activations . | . . . . . . . . . . . . . . . . . . . . . Martial Activations . | . . . . . . . . . . . . . . . . . . . . . Shielding Activations . | . . . . . . . . . . . . . . . . . . . . . Robots Disrupted . | . . . . . . . . . . . . . . . . . . . . . Combat Hostiles . | . . . . . . . . . . . . . . . . . . . . . Robots Corrupted . | . . . . . . . . . . . . . . . . . . . . . Combat Hostiles . | . . . . . . . . . . . . . . . . . . . . . Parts Fried 1 | . . . . . . . . . . . . . . . . . . . 1 . Impact Corruptions . | . . . . . . . . . . . . . . . . . . . . . Robots Melted 5 | . . . . . . . . . . . . . . . . 2 . 3 . . Combat Hostiles 5 | . . . . . . . . . . . . . . . . 2 . 3 . . Parts Melted 19 | . . . . . 1 . 1 . . . . . . . 3 3 2 9 . . Heat Transferred 5059 | . . 450 . . 300 407 . . . . . . 296 407 111 814 700 1400 174 . Parts Sabotaged . | . . . . . . . . . . . . . . . . . . . . . Parts Stolen . | . . . . . . . . . . . . . . . . . . . . . Parts Stripped . | . . . . . . . . . . . . . . . . . . . . . Power Chain Reactions 5 | . . . . . . 4 . . . . . . . . . . . . 1 . Alert | -11 -10 -10 -10 -9 -8 -8 -8 -8 -7 -7 -7 -7 -6 -6 -5 -5 -5 -5 -5 -5 ------- Run | Yrd Mat Min Exi Min Mat Gar Mat Gar Fac Gar Fac Gar Fac Gar Fac Gar Fac Gar Fac Gar Maximum Alert Level 5 | . . . . . 1 4 2 2 1 2 1 5 3 3 1 1 . 2 . . Low Security (%) 29 | 100 100 100 . 100 57 1 . . 87 10 . 4 . . 49 22 100 38 100 100 Level 1 19 | . . . . . 42 15 5 34 12 42 100 2 . 3 50 77 . 44 . . Level 2 23 | . . . . . . 7 94 65 . 46 . 24 51 49 . . . 17 . . Level 3 17 | . . . . . . 61 . . . . . 21 48 47 . . . . . . Level 4 7 | . . . . . . 13 . . . . . 34 . . . . . . . . Level 5 1 | . . . . . . . . . . . . 11 . . . . . . . . High Security . | . . . . . . . . . . . . . . . . . . . . . Max Security . | . . . . . . . . . . . . . . . . . . . . . Peak Influence 1852 | . 137 124 . 73 354 1157 590 500 227 569 295 1852 842 865 393 375 172 408 185 12 Initial 842 | . . 25 . . 10 191 485 213 227 87 258 156 842 380 393 112 170 6 185 12 Average 487 | . 69 57 . 27 169 776 484 412 148 397 260 961 702 663 232 255 83 251 106 9 Influence Increases 8195 | . 191 301 . 101 627 1096 411 307 145 532 107 1886 315 605 139 493 201 492 246 . Destroy 0b10 Robot/C 4500 | . 140 200 . 60 400 700 280 240 100 340 80 760 180 180 80 240 120 300 100 . Destroy 0b10 Robot/NC 125 | . . . . . 40 10 20 . 15 . 5 5 10 . . . 10 . 10 . Destroy Leader 658 | . 20 40 . 10 88 40 56 30 30 30 10 80 42 20 20 40 32 40 30 . Allied During Kill 288 | . . . . 7 9 16 28 14 . . 10 48 48 49 19 22 15 2 1 . Trap Triggered on 0b10 30 | . . . . . . 20 . . . . . . 10 . . . . . . . Successful Hack 98 | . 4 . . . 9 18 3 . . 12 . 12 16 . . 12 . 12 . . Disable Machine 99 | . . 18 . . 36 . . . . . . . 9 . 18 . . . 18 . Anti-Garrison Action 1600 | . . . . . . 100 . . . 100 . 850 . 300 . 150 . 100 . . Destroy Structure 632 | . 27 43 . 24 45 117 9 23 . 5 2 131 . 56 2 29 24 23 72 . Lose Combat Pursuer 165 | . . . . . . 75 15 . . 45 . . . . . . . 15 15 . Influence Decreases 8195 | . 114 373 5 70 321 276 1192 183 503 105 421 289 1550 357 822 300 565 95 633 21 Entered New Map 4028 | . . 52 5 . 21 146 672 163 273 55 311 99 1010 237 472 70 205 5 223 9 Time Decay 2648 | . 114 314 . 70 270 . 350 . 230 . 110 . 440 . 200 . 300 . 250 . Lost Part 539 | . . 7 . . 10 70 . . . 30 . 90 20 20 40 70 . 70 100 12 Lost Ally 830 | . . . . . 20 60 20 20 . 20 . 100 80 100 110 160 60 20 60 . Purge Threat 150 | . . . . . . . 150 . . . . . . . . . . . . . Squads Dispatched 21 | . . . . . 2 . 2 . 2 . 2 . 4 . 5 . 1 . 3 . Investigation 3 | . . . . . . . . . 1 . 1 . . . . . . . 1 . Extermination 4 | . . . . . . . . . 1 . . . 2 . . . . . 1 . Reinforcement 7 | . . . . . 1 . 1 . . . 1 . . . 3 . 1 . . . Assault 3 | . . . . . . . 1 . . . . . 1 . . . . . 1 . Garrison 4 | . . . . . 1 . . . . . . . 1 . 2 . . . . . Intercept . | . . . . . . . . . . . . . . . . . . . . . Searches Triggered . | . . . . . . . . . . . . . . . . . . . . . Construction Impeded . | . . . . . . . . . . . . . . . . . . . . . Haulers Reinforced 1 | . . . . . . . . . . . 1 . . . . . . . . . Active Scanning Responses . | . . . . . . . . . . . . . . . . . . . . . Cargo Convoy Interrupts . | . . . . . . . . . . . . . . . . . . . . . Alert ID Control Effect 50 | . . . . . . . . . . . 2 4 7 15 8 7 3 3 1 . Stealth | -11 -10 -10 -10 -9 -8 -8 -8 -8 -7 -7 -7 -7 -6 -6 -5 -5 -5 -5 -5 -5 --------- Run | Yrd Mat Min Exi Min Mat Gar Mat Gar Fac Gar Fac Gar Fac Gar Fac Gar Fac Gar Fac Gar Distress Signals 12 | . . . . . 5 . 3 . . . 1 . 1 . . . . . 2 . Communications Jammed . | . . . . . . . . . . . . . . . . . . . . . Distress Signals . | . . . . . . . . . . . . . . . . . . . . . Times Spotted 344 | . 6 10 . 3 27 45 21 8 7 20 6 44 20 29 11 26 12 22 25 2 Peak Tracking Total 10 | . 3 3 . 3 5 10 2 3 2 4 2 5 5 5 3 7 4 6 6 2 Tactical Retreats 7 | . . . . . . 2 1 . . 2 . . . . . . . 1 1 . Traps | -11 -10 -10 -10 -9 -8 -8 -8 -8 -7 -7 -7 -7 -6 -6 -5 -5 -5 -5 -5 -5 ------- Run | Yrd Mat Min Exi Min Mat Gar Mat Gar Fac Gar Fac Gar Fac Gar Fac Gar Fac Gar Fac Gar Traps Triggered 26 | . . . . . . 4 . 1 2 2 . 4 3 2 1 5 1 . 1 . Indirectly . | . . . . . . . . . . . . . . . . . . . . . Trap Hack Attempts 173 | . . . . . . 33 . . . 4 . 48 8 22 . 44 14 . . . Triggered . | . . . . . . . . . . . . . . . . . . . . . Disarmed 9 | . . . . . . 1 . . . . . 1 . 4 . 1 2 . . . Reprogrammed 17 | . . . . . . 4 . . . 2 . 3 1 1 . 6 . . . . Reused 3 | . . . . . . 2 . . . . . . 1 . . . . . . . Traps Extracted . | . . . . . . . . . . . . . . . . . . . . . Installed . | . . . . . . . . . . . . . . . . . . . . . Triggered 3 | . . . . . . 2 . . . . . . 1 . . . . . . . Machines | -11 -10 -10 -10 -9 -8 -8 -8 -8 -7 -7 -7 -7 -6 -6 -5 -5 -5 -5 -5 -5 ---------- Run | Yrd Mat Min Exi Min Mat Gar Mat Gar Fac Gar Fac Gar Fac Gar Fac Gar Fac Gar Fac Gar Machines Disabled 28 | . . 2 . . 4 1 . . . 2 . 5 1 4 2 3 . 2 2 . Max in Single Turn 2 | . . 1 . . 2 1 . . . 1 . 1 1 1 . 1 . 1 1 . Garrison Access 1 | . . . . . . . . . . . . . . . . . . . 1 . Garrison Relay 16 | . . . . . . . . . . 2 . 5 . 4 . 3 . 2 . . Machines Repaired . | . . . . . . . . . . . . . . . . . . . . . Machines Dismantled . | . . . . . . . . . . . . . . . . . . . . . Machines Sabotaged . | . . . . . . . . . . . . . . . . . . . . . Overloaded Fab Kills . | . . . . . . . . . . . . . . . . . . . . . Hacking | -11 -10 -10 -10 -9 -8 -8 -8 -8 -7 -7 -7 -7 -6 -6 -5 -5 -5 -5 -5 -5 --------- Run | Yrd Mat Min Exi Min Mat Gar Mat Gar Fac Gar Fac Gar Fac Gar Fac Gar Fac Gar Fac Gar Machines Accessed 35 | . 1 . 4 . 3 3 6 . 2 2 3 1 3 1 1 2 1 1 1 . Terminals 15 | . 1 . . . 1 3 2 . . 2 1 1 . 1 . 2 . 1 . . Fabricators 2 | . . . . . . . . . 1 . . . 1 . . . . . . . Repair Stations 4 | . . . . . 1 . 2 . . . . . 1 . . . . . . . Recycling Units . | . . . . . . . . . . . . . . . . . . . . . Scanalyzers 2 | . . . . . . . 1 . . . 1 . . . . . . . . . Garrison Access 8 | . . . . . 1 . 1 . 1 . 1 . 1 . 1 . 1 . 1 . Total Hacks 73 | . 1 . 12 . 8 3 23 . 2 3 5 2 7 1 1 2 1 1 1 . Successful 58 | . 1 . 12 . 4 3 19 . 2 1 3 1 6 1 1 1 1 1 1 . Failed 15 | . . . . . 4 . 4 . . 2 2 1 1 . . 1 . . . . Catastrophic 3 | . . . . . 1 . . . . 1 1 . . . . . . . . . Database Lockouts . | . . . . . . . . . . . . . . . . . . . . . Manual . | . . . . . . . . . . . . . . . . . . . . . Terminals 22 | . 1 . . . 4 3 4 . . 3 1 2 . 1 . 2 . 1 . . Fabricators 2 | . . . . . . . . . 1 . . . 1 . . . . . . . Repair Stations 21 | . . . . . 2 . 14 . . . . . 5 . . . . . . . Recycling Units . | . . . . . . . . . . . . . . . . . . . . . Scanalyzers 7 | . . . . . . . 4 . . . 3 . . . . . . . . . Garrison Access 9 | . . . . . 2 . 1 . 1 . 1 . 1 . 1 . 1 . 1 . Terminal Hacks 25 | . 1 . 12 . 2 3 2 . . 1 . 1 . 1 . 1 . 1 . . Record 12 | . . . 12 . . . . . . . . . . . . . . . . . Open Door 2 | . . . . . . 2 . . . . . . . . . . . . . . Emergency Access Points 6 | . . . . . 1 1 1 . . 1 . 1 . . . 1 . . . . Terminal Index 1 | . 1 . . . . . . . . . . . . . . . . . . . Unreport Threat 1 | . . . . . . . 1 . . . . . . . . . . . . . Registered Components 1 | . . . . . 1 . . . . . . . . . . . . . . . Garrison Registry 1 | . . . . . . . . . . . . . . 1 . . . . . . Patrol Navigation 1 | . . . . . . . . . . . . . . . . . . 1 . . Fabricator Hacks 2 | . . . . . . . . . 1 . . . 1 . . . . . . . Build 2 | . . . . . . . . . 1 . . . 1 . . . . . . . Repair Station Hacks 19 | . . . . . 1 . 14 . . . . . 4 . . . . . . . Scan Component 10 | . . . . . 1 . 7 . . . . . 2 . . . . . . . Repair 9 | . . . . . . . 7 . . . . . 2 . . . . . . . Recycling Unit Hacks . | . . . . . . . . . . . . . . . . . . . . . Scanalyzer 4 | . . . . . . . 2 . . . 2 . . . . . . . . . Insert Component 2 | . . . . . . . 1 . . . 1 . . . . . . . . . Analyze 2 | . . . . . . . 1 . . . 1 . . . . . . . . . Garrison Access Hacks 8 | . . . . . 1 . 1 . 1 . 1 . 1 . 1 . 1 . 1 . Unlock Access 8 | . . . . . 1 . 1 . 1 . 1 . 1 . 1 . 1 . 1 . Unauthorized Hacks . | . . . . . . . . . . . . . . . . . . . . . Terminals . | . . . . . . . . . . . . . . . . . . . . . Fabricators . | . . . . . . . . . . . . . . . . . . . . . Repair Stations . | . . . . . . . . . . . . . . . . . . . . . Recycling Units . | . . . . . . . . . . . . . . . . . . . . . Scanalyzers . | . . . . . . . . . . . . . . . . . . . . . Garrison Access . | . . . . . . . . . . . . . . . . . . . . . Data Cores Recovered 2 | . . . . . 1 . 1 . . . . . . . . . . . . . Used . | . . . . . . . . . . . . . . . . . . . . . Hacking Detections 18 | . . . . . 2 . 4 . . 1 3 . 3 1 1 1 1 . 1 . Full Trace Events 1 | . . . . . . . . . . . 1 . . . . . . . . . Feedback Events . | . . . . . . . . . . . . . . . . . . . . . Feedback Blocked . | . . . . . . . . . . . . . . . . . . . . . Robot Schematics Acquired . | . . . . . . . . . . . . . . . . . . . . . Robots Built . | . . . . . . . . . . . . . . . . . . . . . Authchips . | . . . . . . . . . . . . . . . . . . . . . Time . | . . . . . . . . . . . . . . . . . . . . . Total Robot Build Rating . | . . . . . . . . . . . . . . . . . . . . . Part Schematics Acquired 1 | . . . . . . . 1 . . . . . . . . . . . . . Parts Built 4 | . . . . . . . . . 2 . . . 2 . . . . . . . Authchips . | . . . . . . . . . . . . . . . . . . . . . Time 153 | . . . . . . . . . 95 . . . 58 . . . . . . . Total Part Build Rating 24 | . . . . . . . . . 10 . . . 14 . . . . . . . Part Studies Acquired . | . . . . . . . . . . . . . . . . . . . . . Parts Repaired 9 | . . . . . . . 7 . . . . . 2 . . . . . . . Time 384 | . . . . . . . 272 . . . . . 112 . . . . . . . Parts Recycled . | . . . . . . . . . . . . . . . . . . . . . Recycled Matter . | . . . . . . . . . . . . . . . . . . . . . Retrieved Matter . | . . . . . . . . . . . . . . . . . . . . . Retrieved Components . | . . . . . . . . . . . . . . . . . . . . . Parts Scanalyzed 2 | . . . . . . . 1 . . . 1 . . . . . . . . . Part Schematics Acquired 1 | . . . . . . . 1 . . . . . . . . . . . . . Parts Damaged . | . . . . . . . . . . . . . . . . . . . . . Bothacking | -11 -10 -10 -10 -9 -8 -8 -8 -8 -7 -7 -7 -7 -6 -6 -5 -5 -5 -5 -5 -5 ------------ Run | Yrd Mat Min Exi Min Mat Gar Mat Gar Fac Gar Fac Gar Fac Gar Fac Gar Fac Gar Fac Gar Used RIF Installer 6 | . . . . . . 1 . 1 . 1 . 1 . 1 . . . 1 . . Code Merge 1 | . . . . . . . . . . . . 1 . . . . . . . . Zone Cloak 1 | . . . . . . . . . . . . . . 1 . . . . . . Robot Detection 1 | . . . . . . . . 1 . . . . . . . . . . . . Watcher Feeds 1 | . . . . . . . . . . . . . . . . . . 1 . . Alert ID Control 1 | . . . . . . . . . . 1 . . . . . . . . . . Robots Hacked 50 | . . . . . . . 1 . 1 3 1 5 7 7 6 6 5 1 7 . Non-combat 4 | . . . . . . . . . . . . . . . 2 . 1 . 1 . Combat 46 | . . . . . . . 1 . 1 3 1 5 7 7 4 6 4 1 6 . Robot Hacks Applied 54 | . . . . . . . 2 . 1 3 1 5 7 7 7 6 5 1 9 . drop_inventory 1 | . . . . . . . . . . . . . . . . . 1 . . . ignore_parts 1 | . . . . . . . . . . . . . . . . . . . 1 . find_garrison 7 | . . . . . . . 1 . 1 . 1 . 1 . 1 . 1 . 1 . wipe_record 1 | . . . . . . . . . . . . . . . . . . . 1 . disable_weapons 1 | . . . . . . . . . . . . . . . . . . . 1 . go_dormant 3 | . . . . . . . . . . . . . . 1 . . . . 2 . overwrite_iff 10 | . . . . . . . . . . 2 . 1 1 . . 3 1 1 1 . streamctrl_high 2 | . . . . . . . . . . . . . 2 . . . . . . . formatsys_low 2 | . . . . . . . . . . . . . . . 2 . . . . . formatsys_high 26 | . . . . . . . 1 . . 1 . 4 3 6 4 3 2 . 2 . Relay Couplers Released 70 | . . . . . . 3 . . . 7 . 23 . 15 . 10 3 7 2 . Machine Destruction 60 | . . . . . . . . . . 7 . 19 . 15 . 10 . 7 2 . Programmers 10 | . . . . . . 3 . . . . . 4 . . . . 3 . . . Attached 22 | . . . . . . . 1 . . 4 . 4 . 5 1 5 . . 2 . Merged Code Value 126 | . . . . . . . . . . . . 8 . 54 . 46 9 9 . . Fabnet Peak Effective % . | . . . . . . . . . . . . . . . . . . . . . Robots Rewired 10 | . . . 4 . . 2 . . . . . 4 . . . . . . . . Allies Hacked 3 | . . . . . . . . . . . . 2 . . . . 1 . . . Hacks Repelled . | . . . . . . . . . . . . . . . . . . . . . Allies | -11 -10 -10 -10 -9 -8 -8 -8 -8 -7 -7 -7 -7 -6 -6 -5 -5 -5 -5 -5 -5 -------- Run | Yrd Mat Min Exi Min Mat Gar Mat Gar Fac Gar Fac Gar Fac Gar Fac Gar Fac Gar Fac Gar Total Allies 53 | . . . 4 . . 3 1 . . 5 . 9 6 6 6 6 3 1 3 . Largest Group 9 | . . . 4 4 3 3 2 1 . 3 3 7 7 9 8 5 4 1 1 . Highest-Rated Group 346 | . . . 58 58 50 149 164 149 . 163 163 163 206 270 346 300 165 49 49 . Highest-Rated Ally 149 | . . . 21 21 21 149 149 149 . 80 80 80 47 43 142 142 49 49 49 . Total Orders . | . . . . . . . . . . . . . . . . . . . . . Ally Attacks 485 | . . . . 3 56 30 23 18 . 5 18 70 42 71 46 49 35 9 10 . Total Damage 12520 | . . . . 43 985 525 957 817 . 33 571 1509 1026 1709 1672 1550 750 202 171 . Kills 124 | . . . . . 20 6 13 9 . . 5 14 13 17 9 10 4 3 1 . Allies Corrupted 2 | . . . . . . . . . . . . . . . . . 2 . . . Allies Melted 1 | . . . . . . . . . . . . . 1 . . . . . . . Intel | -11 -10 -10 -10 -9 -8 -8 -8 -8 -7 -7 -7 -7 -6 -6 -5 -5 -5 -5 -5 -5 ------- Run | Yrd Mat Min Exi Min Mat Gar Mat Gar Fac Gar Fac Gar Fac Gar Fac Gar Fac Gar Fac Gar Active Infowar (turns) 13461 | . . . . . 384 1712 713 494 477 964 226 2699 891 1263 417 1175 607 792 509 138 Optics 13461 | . . . . . 384 1712 713 494 477 964 226 2699 891 1263 417 1175 607 792 509 138 ECM 1 | . . . . . . . . . . . . . 1 . . . . . . . Robot Analysis Total . | . . . . . . . . . . . . . . . . . . . . . Derelict Logs Recovered 1 | . . . . 1 . . . . . . . . . . . . . . . . Drone Launches . | . . . . . . . . . . . . . . . . . . . . . Drone Recoveries . | . . . . . . . . . . . . . . . . . . . . . Exploration | -11 -10 -10 -10 -9 -8 -8 -8 -8 -7 -7 -7 -7 -6 -6 -5 -5 -5 -5 -5 -5 ------------- Run | Yrd Mat Min Exi Min Mat Gar Mat Gar Fac Gar Fac Gar Fac Gar Fac Gar Fac Gar Fac Gar Turns Passed 16147 | 57 293 731 1153 251 549 1712 713 494 477 964 226 2699 891 1263 417 1175 607 792 509 174 Spaces Moved 9910 | 39 213 484 929 190 284 1072 360 279 302 589 163 1850 510 853 210 621 327 350 230 55 Core 214 | 6 . . . . . . . . . . . . . . . 1 . . 152 55 Treads 1235 | . . . . . . . . . . . . . . . . 480 327 350 78 . Legs 8461 | 33 213 484 929 190 284 1072 360 279 302 589 163 1850 510 853 210 140 . . . . Wheels . | . . . . . . . . . . . . . . . . . . . . . Hover . | . . . . . . . . . . . . . . . . . . . . . Flight . | . . . . . . . . . . . . . . . . . . . . . Fastest Speed 50 | 50 120 120 120 120 120 103 103 103 103 123 123 100 105 120 120 120 162 162 50 100 Average Speed 124 | 114 120 120 120 120 128 122 103 103 108 123 123 119 116 120 132 156 162 162 113 100 Slowest Speed 750 | 120 120 120 120 120 130 195 103 103 270 123 123 180 125 122 190 750 162 165 240 100 Overloaded Moves . | . . . . . . . . . . . . . . . . . . . . . Propulsion Burnouts . | . . . . . . . . . . . . . . . . . . . . . Robots Hopped . | . . . . . . . . . . . . . . . . . . . . . Potential Cave-ins 16 | . . . 3 . . . . . . . . . . . . . . 13 . . Cave-ins Triggered . | . . . . . . . . . . . . . . . . . . . . . Exploration Rate (%) 42 | 3 45 93 91 44 40 89 36 39 12 64 6 92 13 76 6 62 12 41 10 12 Regions Visited 20 Branch Regions 3 Pre-discovered Areas 1 | . . . . 1 . . . . . . . . . . . . . . . . Known Exits Taken 8 | . . . . . 1 . 1 . 1 . 1 . 1 . 1 . 1 . 1 . Unknown Exits Taken 5 | 1 1 1 1 1 . . . . . . . . . . . . . . . . Scrap Searched 3 | . . 1 . 2 . . . . . . . . . . . . . . . . Spaces Dug 82 | . . . 24 33 . . . 1 . . . 4 . 4 . . . 16 . . Terrain Destroyed 339 | . 23 59 24 39 41 41 . 1 . 2 2 28 . 15 . 1 10 19 34 . Melee 21 | . . . . . . . . 1 . . . 4 . . . . . 16 . . Projectile 19 | . . . . . . . . . . 2 2 1 . . . 1 10 3 . . AOE 299 | . 23 59 24 39 41 41 . . . . . 23 . 15 . . . . 34 . Terrain Rammed . | . . . . . . . . . . . . . . . . . . . . . Walls Destroyed . | . . . . . . . . . . . . . . . . . . . . . Machines Disabled . | . . . . . . . . . . . . . . . . . . . . . Actions | -11 -10 -10 -10 -9 -8 -8 -8 -8 -7 -7 -7 -7 -6 -6 -5 -5 -5 -5 -5 -5 --------- Run | Yrd Mat Min Exi Min Mat Gar Mat Gar Fac Gar Fac Gar Fac Gar Fac Gar Fac Gar Fac Gar Total 12750 | 51 235 602 960 204 397 1325 681 452 410 733 176 2138 780 1043 329 766 377 478 439 174 Wait 1475 | . 4 84 17 7 35 77 294 148 63 63 1 39 196 91 80 13 . 44 143 76 Move 9893 | 38 212 483 928 189 283 1071 360 278 302 587 163 1849 510 852 209 620 326 348 230 55 Hop . | . . . . . . . . . . . . . . . . . . . . . Pick Up 99 | 7 6 4 1 . 12 10 3 1 4 1 . 10 4 8 3 10 3 5 7 . Fast Attach 74 | . . 1 . 1 3 8 6 . 5 6 1 12 12 2 7 4 1 5 . . Attach 56 | 6 . 1 . . 4 6 . . 2 . . 3 1 5 3 10 . 3 11 1 Detach 5 | . . . . . . . . . . . . . . 1 . . . 1 3 . Swap 160 | . 6 4 3 3 10 19 4 5 6 6 3 30 15 16 7 8 3 7 5 . Drop 82 | . . 4 2 . 8 11 2 2 6 4 1 12 8 7 1 6 5 2 1 . Fire 566 | . 7 21 4 4 42 82 10 15 17 54 7 100 21 29 14 37 21 42 39 . Melee 97 | . . . 5 . . 4 2 3 5 3 . 26 5 8 5 7 3 21 . . Ram 39 | . . . . . . . . . . . . . . . . . . . . 39 Kick 3 | . . . . . . . . . . . . . . . . . . . . 3 Crush . | . . . . . . . . . . . . . . . . . . . . . Escape Stasis 27 | . . . . . . 4 . . . 5 . 9 . 2 . 7 . . . . Rewire 1 | . . . . . . . . . . . . . . . . . 1 . . . Trap 173 | . . . . . . 33 . . . 4 . 48 8 22 . 44 14 . . . Miscellaneous . | . . . . . . . . . . . . . . . . . . . . . Route ------- -11/Scrapyard -10/Materials -10/Mines (discovered 3 exits: [*Mat x2] / *Exi) -10/Exiles (discovered 2 exits: [*Min x2]) -9/Mines -8/Materials (discovered 2 exits: *Fac / Gar) -8/Garrison (discovered 3 exits: *Mat x3) -8/Materials -8/Garrison -7/Factory (discovered 2 exits: [*Low] / Gar) -7/Garrison (discovered 3 exits: *Fac x3) -7/Factory -7/Garrison (discovered 3 exits: *Fac x3) -6/Factory (discovered 2 exits: *Fac / Gar) -6/Garrison (discovered 3 exits: *Fac x3) -5/Factory (discovered 2 exits: [*Fac] / Gar) -5/Garrison (discovered 2 exits: *Fac x2) -5/Factory (discovered 2 exits: [*Upp] / Gar) -5/Garrison -5/Factory (discovered 2 exits: [*Fac] / Gar) -5/Garrison History --------- Turn | Location | Event 6 | -11/Scrapyard | Discovered new exit (range 16) 58 | -11/Scrapyard | Entered Materials 289 | -10/Materials | Discovered new exit (range 16) 301 | -10/Materials | Build established: Mutant 351 | -10/Materials | Entered Mines 396 | -10/Mines | Received a Rocket Launcher from a helpful Derelict 552 | -10/Mines | Discovered new exit (range 7) 882 | -10/Mines | Build established: Scavenger-Mutant 1070 | -10/Mines | Discovered new exit (range 10) 1076 | -10/Mines | Deemed a non-threat by the Exiles lab entrance 1077 | -10/Mines | Discovered new exit (range 5) 1082 | -10/Mines | Entered Exiles 1082 | -10/Exiles | Found Exiles lab destroyed 1572 | -10/Exiles | Discovered new exit (range 14) 1982 | -10/Exiles | Build established: Commander-Mutant 2054 | -10/Exiles | Discovered new exit (range 14) 2235 | -10/Exiles | Entered Mines 2235 | -9/Mines | Accompanied by 4 allies 2324 | -9/Mines | Assembled infested the area 2459 | -9/Mines | Discovered new exit (range 15) 2460 | -9/Mines | Learned location of Storage (-9) 2486 | -9/Mines | Entered Materials 2486 | -8/Materials | Accompanied by 3 allies 2486 | -8/Materials | Evolved 4 slots: Propulsion x1, Utility x3 2669 | -8/Materials | Build established: Mutant 2679 | -8/Materials | Discovered new exit (range 17) 2953 | -8/Materials | Garrison activated, responded to threat 3030 | -8/Materials | Identified exit to Garrison 3035 | -8/Materials | Entered Garrison 3035 | -8/Garrison | Accompanied by 1 ally 3139 | -8/Garrison | Triggered checkpoint 3313 | -8/Garrison | Triggered checkpoint 3326 | -8/Garrison | Triggered checkpoint 3326 | -8/Garrison | Triggered checkpoint 3367 | -8/Garrison | Triggered checkpoint 3369 | -8/Garrison | Lost 3 allies 3389 | -8/Garrison | Destroyed 13 combat bots 3627 | -8/Garrison | Discovered new exit (range 19) 3689 | -8/Garrison | Triggered checkpoint 3702 | -8/Garrison | Core integrity fell below 50% 3788 | -8/Garrison | Discovered new exit (range 8) 4003 | -8/Garrison | Discovered new exit (range 12) 4008 | -8/Garrison | Build established: Scavenger-Mutant 4047 | -8/Garrison | Triggered checkpoint 4526 | -8/Garrison | Rescued HV-R5K 4655 | -8/Garrison | Installed Relay Interface Framework 4747 | -8/Garrison | Entered Materials 4747 | -8/Materials | Accompanied by 1 ally (HV-R5K) 4809 | -8/Materials | Repaired Gauss Rifle 4855 | -8/Materials | Repaired Gauss Rifle 4894 | -8/Materials | Repaired Hrd. Medium Armor Plating 4934 | -8/Materials | Repaired Titanium Leg 4973 | -8/Materials | Repaired VSS Leg 5013 | -8/Materials | Repaired VSS Leg 5147 | -8/Materials | First assault squad dispatched 5439 | -8/Materials | Repaired EMP Blaster 5460 | -8/Materials | Identified exit to Garrison 5460 | -8/Materials | Entered Garrison 5460 | -8/Garrison | Accompanied by 1 ally (HV-R5K) 5511 | -8/Garrison | Expanded RIF knowledge: Robot Detection 5594 | -8/Garrison | Triggered checkpoint 5636 | -8/Garrison | Triggered checkpoint 5648 | -8/Garrison | Spotted B-75 Beast 5648 | -8/Garrison | Spotted B-75 Beast 5673 | -8/Garrison | Destroyed B-75 Beast 5907 | -8/Garrison | Discovered new exit (range 19) 5954 | -8/Garrison | Entered Factory 5954 | -7/Factory | Evolved 2 slots: Utility x2 6077 | -7/Factory | Fabricated Lgt. Fission Core (x2) 6156 | -7/Factory | Discovered new exit (range 15) 6431 | -7/Factory | Identified exit to Garrison 6431 | -7/Factory | Entered Garrison 6467 | -7/Garrison | Triggered checkpoint 6536 | -7/Garrison | Garrison Relay disabled 6603 | -7/Garrison | Build established: Mutant 6729 | -7/Garrison | Triggered checkpoint 6784 | -7/Garrison | Discovered new exit (range 12) 7007 | -7/Garrison | Discovered new exit (range 12) 7095 | -7/Garrison | Triggered checkpoint 7195 | -7/Garrison | Discovered new exit (range 13) 7225 | -7/Garrison | Triggered checkpoint 7273 | -7/Garrison | Expanded RIF knowledge: Alert ID Control 7299 | -7/Garrison | Garrison Relay disabled 7310 | -7/Garrison | Found embedded Infiltrators 7395 | -7/Garrison | Entered Factory 7395 | -7/Factory | Accompanied by 3 allies 7607 | -7/Factory | Build established: Bothacker-Mutant 7621 | -7/Factory | Identified exit to Garrison 7621 | -7/Factory | Entered Garrison 7621 | -7/Garrison | Accompanied by 3 allies 7915 | -7/Garrison | Triggered checkpoint 7996 | -7/Garrison | Discovered new exit (range 12) 8063 | -7/Garrison | Build established: Scavenger-Mutant 8098 | -7/Garrison | Discovered new exit (range 12) 8269 | -7/Garrison | Triggered checkpoint 8282 | -7/Garrison | Garrison Relay disabled 8341 | -7/Garrison | Discovered new exit (range 19) 8443 | -7/Garrison | Triggered checkpoint 8553 | -7/Garrison | Build established: Bothacker-Mutant 8633 | -7/Garrison | Triggered checkpoint 8918 | -7/Garrison | Lost 3 parts (2n1u) 8934 | -7/Garrison | Garrison Relay disabled 9031 | -7/Garrison | Triggered checkpoint 9057 | -7/Garrison | Triggered checkpoint 9077 | -7/Garrison | Garrison Relay disabled 9367 | -7/Garrison | Triggered checkpoint 9383 | -7/Garrison | Garrison Relay disabled 9601 | -7/Garrison | Triggered checkpoint 10263 | -7/Garrison | Expanded RIF knowledge: Code Merge 10281 | -7/Garrison | Garrison Relay disabled 10320 | -7/Garrison | Entered Factory 10320 | -6/Factory | Accompanied by 6 allies 10320 | -6/Factory | Evolved 2 slots: Propulsion x1, Utility x1 10432 | -6/Factory | Fabricated Dispersion Rifle (x2) 10670 | -6/Factory | First assault squad dispatched 10752 | -6/Factory | Discovered new exit (range 9) 10813 | -6/Factory | Lost 3 allies 10951 | -6/Factory | Garrison activated, responded to threat 11093 | -6/Factory | Repaired Imp. Deuterium Engine 11163 | -6/Factory | Repaired Adv. Remote Datajack 11198 | -6/Factory | Identified exit to Garrison 11211 | -6/Factory | Entered Garrison 11211 | -6/Garrison | Accompanied by 6 allies 11245 | -6/Garrison | Triggered checkpoint 11280 | -6/Garrison | Garrison Relay disabled 11425 | -6/Garrison | Triggered checkpoint 11437 | -6/Garrison | Triggered checkpoint 11457 | -6/Garrison | Triggered checkpoint 11475 | -6/Garrison | Triggered checkpoint 11529 | -6/Garrison | Lost 4 allies 11581 | -6/Garrison | Triggered checkpoint 11623 | -6/Garrison | Triggered checkpoint 11634 | -6/Garrison | Garrison Relay disabled 11688 | -6/Garrison | Discovered new exit (range 11) 11832 | -6/Garrison | Discovered new exit (range 12) 11861 | -6/Garrison | Triggered checkpoint 11873 | -6/Garrison | Garrison Relay disabled 11995 | -6/Garrison | Discovered new exit (range 14) 12039 | -6/Garrison | Triggered checkpoint 12060 | -6/Garrison | Discovered new exit (range 59) 12060 | -6/Garrison | Discovered new exit (range 9) 12060 | -6/Garrison | Discovered new exit (range 58) 12176 | -6/Garrison | Expanded RIF knowledge: Zone Cloak 12312 | -6/Garrison | Found Relay Coupler [Proto] 12368 | -6/Garrison | Garrison Relay disabled 12468 | -6/Garrison | Build established: Botlord-Mutant 12474 | -6/Garrison | Entered Factory 12474 | -5/Factory | Accompanied by 6 allies 12474 | -5/Factory | Evolved 2 slots: Power x1, Utility x1 12611 | -5/Factory | Discovered new exit (range 19) 12650 | -5/Factory | Lost 3 allies 12719 | -5/Factory | Lost 3 allies 12875 | -5/Factory | Identified exit to Garrison 12891 | -5/Factory | Entered Garrison 12891 | -5/Garrison | Accompanied by 5 allies 12925 | -5/Garrison | Triggered checkpoint 12973 | -5/Garrison | Lost 4 parts (3n1u) 12978 | -5/Garrison | Garrison Relay disabled 13127 | -5/Garrison | Spotted B-75 Beast 13137 | -5/Garrison | Triggered checkpoint 13146 | -5/Garrison | Destroyed B-75 Beast 13185 | -5/Garrison | Lost 7 allies 13356 | -5/Garrison | Spotted B-75 Beast 13356 | -5/Garrison | Spotted B-75 Beast 13436 | -5/Garrison | Garrison Relay disabled 13438 | -5/Garrison | Build established: Bothacker-Mutant 13535 | -5/Garrison | Triggered checkpoint 13610 | -5/Garrison | Discovered new exit (range 13) 13815 | -5/Garrison | Discovered new exit (range 12) 13859 | -5/Garrison | Triggered checkpoint 13879 | -5/Garrison | Garrison Relay disabled 14066 | -5/Garrison | Entered Factory 14066 | -5/Factory | Accompanied by 3 allies 14176 | -5/Factory | Build established: Botlord-Mutant 14436 | -5/Factory | Discovered new exit (range 15) 14671 | -5/Factory | Identified exit to Garrison 14673 | -5/Factory | Entered Garrison 14673 | -5/Garrison | Accompanied by 1 ally 14799 | -5/Garrison | Triggered checkpoint 14852 | -5/Garrison | Expanded RIF knowledge: Watcher Feeds 14866 | -5/Garrison | Garrison Relay disabled 15099 | -5/Garrison | Lost 6 parts (2p1n2u1w) 15113 | -5/Garrison | Triggered checkpoint 15164 | -5/Garrison | Spotted B-86 Titan 15244 | -5/Garrison | Discovered new exit (range 11) 15330 | -5/Garrison | Garrison Relay disabled 15431 | -5/Garrison | Triggered checkpoint 15465 | -5/Garrison | Entered Factory 15476 | -5/Factory | Assembled infested Garrison Access 15653 | -5/Factory | Lost 5 parts (3n2w) 15714 | -5/Factory | Core integrity fell below 50% 15751 | -5/Factory | Discovered new exit (range 14) 15752 | -5/Factory | Lost 5 parts (2p1n2w) 15974 | -5/Factory | Identified exit to Garrison 15974 | -5/Factory | Entered Garrison 16128 | -5/Garrison | System corruption reached 10% 16133 | -5/Garrison | Core integrity fell below 20% 16148 | -5/Garrison | Destroyed by P-70 Sage with High-powered Shock Rifle Last Messages --------------- disabled. Slammed into P-70 Sage. Relay Coupler [Specialist] destroyed. System corrupted by crushing effect (+4). Slammed into P-70 Sage. XKNVCP0MHPUH5GB&YWQR=ERS Slammed into P-70 Sage. Relay Coupler [Sentry] destroyed. P-70 Sage resets P-70 Sage, system corruption cleaned. Slammed into P-70 Sage. Destabilizing: Core damaged (-10). Slammed into P-70 Sage. Destabilizing: System corrupted (+2). Slammed into P-70 Sage. Adv. Heat Sink destroyed. Slammed into P-70 Sage. Adv. Visual Processing Unit broken. Destabilizing: Short circuit. Slammed into P-70 Sage. Map ----- +----------------------------------------------------+ | ?????????????????????????????????????????????????? | | ?????????????????????????????????????????????????? | | ?????????????????????????????????????????????????? | | ?????????????????????????????????????????????????? | | ?????????????????????????????????????????????????? | | ????????????????##???????????????????????????????? | | ???????????????? ???????????????????????????????? | | ???????????????# ???????????????????????????????? | | ??????????????? #??????????????????????????????? | | ??????????????? #??????????????????????????????? | | ??????????????? #??????????????????????????????? | | ???????????????# #??????????????????????????????? | | ???????????????# #??????????????????????????????? | | ???????????????# #??????????????????????????????? | | ???????????????# #??????????????????????????????? | | ???????????????# #??????????????????????????????? | | ???????????????" #??????????????????????????????? | | ???????????????" #??????????????????????????????? | | ???????????????" #??????????????????#####???????? | | ???????????????# #??????????????????# #???????? | | ?????########### #################### #???????? | | ?????# ^^ #???????? | | ?????# #???????? | | ?????# #???????? | | ?????# ################//###############???????? | | ????????????????????????#@ #?????????????????????? | | ???????????????????????" p "??????????????????? | | ?????????????????????#"! !"#????????????????? | | ?????????????????????#"! !"#????????????????? | | ?????????????????????#"! !"#????????????????? | | ?????????????????????#"! !"#????????????????? | | ?????????????????????#"! !"#????????????????? | | ?????????????????????#"! !"#????????????????? | | ?????????????????????#"" ""#????????????????? | | ?????????????????????#"""!!!!"""#????????????????? | | ??????????????????????"""""""""??????????????????? | | ???????????????????????#######???????????????????? | | ?????????????????????????????????????????????????? | | ?????????????????????????????????????????????????? | | ?????????????????????????????????????????????????? | | ?????????????????????????????????????????????????? | | ?????????????????????????????????????????????????? | | ?????????????????????????????????????????????????? | | ?????????????????????????????????????????????????? | | ?????????????????????????????????????????????????? | | ?????????????????????????????????????????????????? | | ?????????????????????????????????????????????????? | | ?????????????????????????????????????????????????? | | ?????????????????????????????????????????????????? | | ?????????????????????????????????????????????????? | +----------------------------------------------------+ Best States ------------- Heat Dissipation 59 Energy Generation 28 Energy Capacity 290 Matter Stores 300 Matter Capacity 300 Sight Range 20 Terrain Scan Density 10 Armor Coverage 600 Resistance: KI 20 Resistance: TH 20 Resistance: EX 20 Resistance: EM 35 Resistance: I 20 Resistance: S 20 Resistance: P 20 Power Shielding 66 Evasion (%) 65 Targeting Accuracy 8 Armor Integrity Analysis 30 Recoil Reduction 4 Offensive Hacking 10 Relay Coupler Types 6 Relay Coupler Value 200 Authchip Count 1 Item Schematics ----------------- Imp. Datajack | -8/Materials | Scanalyzed Robot Schematics ------------------ None Fabricated ------------ Lgt. Fission Core | x2 | -7/Factory | Preloaded Dispersion Rifle | x2 | -6/Factory | Preloaded Repaired ---------- Gauss Rifle | 7% | -8/Materials Gauss Rifle | 16% | -8/Materials Hrd. Medium Armor Plating | 74% | -8/Materials Titanium Leg | 51% | -8/Materials VSS Leg | 70% | -8/Materials VSS Leg | 73% | -8/Materials EMP Blaster | 28% | -8/Materials Imp. Deuterium Engine | 37% | -6/Factory Adv. Remote Datajack | 61% | -6/Factory Studied --------- None Alien Tech Used ----------------- None Achievements -------------- A Problem For Future Me Botjacking Hack The Planet Hackerman Heavy Suspicion I Laugh At Your Crits Versatile Challenges ------------ None Game ------ Seed SmartPiercingSword Manual? 0 Play Time 02:34:19 Cumulative 52.3 hours Start 2026.02.16 @ 10:00:38 End 2026.02.16 @ 12:35:49 Sessions 1 Manual Loads 0 Difficulty Adventurer Special Mode None Game No. 45 Rogue 0 Adventurer 45 Explorer 0 Win Type - Total 0 Types 0/0/0/0/0/0/0/0/0/0 Lore% 11 Gallery% 31 Achievement% 24 Wizard Run 0 Options --------- Layout 1 ASCII 0 Keyboard 0 Movement Mouse Keybinds 0 Fullscreen 1 Font 24/Smallcaps Map View 50x35 Zoom Use 0% Tactical HUD 0 Map Filters NONE Filters NONE Steam 1 RUN: 4b855f7d-03b2-494c-83f6-d4405a5e6a9b